bitfinex/quotes_ETHUSD_20250112
["timestamp","ask_amount","ask_price","bid_price","bid_amount"]
[1736683892920,0.20878113,3257.1,3256.6,0.7891]
[1736683893117,0.7665,3257.4,3256.7,0.03070258]
[1736683893352,0.20878113,3257.0,3256.7,0.03070258]
[1736683893548,8.43432,3257.6,3256.8,0.29692626]
[1736683893748,0.20878113,3256.9,3256.6,2.93856]
[1736683893932,0.55,3257.5,3256.6,2.93856]
[1736683894474,0.20878113,3257.4,3256.6,2.93856]
[1736683894634,0.20878113,3257.4,3256.7,2.1494]
[1736683895582,0.20878113,3257.4,3256.8,0.7891]
[1736683895749,0.20878113,3257.4,3256.8,0.81980069]
[1736683895961,0.20878113,3257.4,3256.8,1.11672076]
[1736683896981,0.20878113,3257.4,3256.9,0.7891]
[1736683898142,0.20878113,3257.4,3256.9,2.93834]
[1736683898343,6.0765,3257.9,3257.0,0.7891]
[1736683898344,0.20980081,3257.3,3257.0,0.7891]
[1736683898584,0.7665,3257.9,3257.0,0.7891]
[1736683898782,2.91513,3257.9,3257.0,0.7891]
[1736683899119,0.20980081,3257.8,3257.1,0.293834]
[1736683900750,0.55,3257.5,3257.1,0.293834]
[1736683900948,0.7665,3257.4,3257.0,0.7891]
[1736683901194,0.97643323,3257.4,3257.0,0.7891]
[1736683902366,0.20993323,3257.4,3257.0,0.7891]
[1736683902559,0.55,3257.5,3257.0,0.7891]
[1736683902904,0.8208,3257.7,3257.1,0.03070013]
[1736683902905,0.2099266,3257.4,3257.1,0.03070013]
[1736683903261,0.55,3257.7,3257.1,0.03070013]
[1736683903463,0.20984716,3257.3,3257.1,0.03070013]
[1736683903809,0.20984716,3257.2,3257.1,0.03070013]
[1736683903966,0.55,3257.7,3257.1,0.32760514]
[1736683904181,0.20984716,3257.6,3257.1,0.32760514]
[1736683905700,0.20984716,3257.6,3257.2,0.8055]
[1736683906478,0.20984716,3257.6,3257.3,0.03069748]
[1736683906663,0.55,3257.9,3257.3,0.03069748]
[1736683906867,0.20988026,3257.5,3257.3,0.03069748]
[1736683907096,0.55,3257.9,3257.3,0.03069748]
[1736683907295,0.20988026,3257.4,3257.3,0.03069748]
[1736683907907,0.20988026,3257.4,3257.1,0.29690501]
[1736683907908,0.55,3258.0,3256.8,2.14931]
[1736683908065,0.20988026,3257.4,3257.3,0.8055]
[1736683908413,0.55,3258.0,3257.3,0.83619532]
[1736683908567,0.20988026,3257.9,3257.3,0.83619532]
[1736683909308,0.20988026,3257.9,3257.3,2.14896]
[1736683909513,0.20988026,3257.9,3257.4,0.8055]
[1736683909675,0.55,3258.2,3257.5,0.295446]
[1736683910007,0.55,3258.2,3257.4,0.8055]
[1736683910208,2.35855573,3258.1,3257.4,0.8055]
[1736683910556,0.21004573,3258.1,3257.4,0.8055]
[1736683912454,0.55,3258.1,3257.4,0.8055]
[1736683912631,0.2100656,3258.0,3257.4,0.8055]
[1736683913543,0.2100656,3258.0,3257.5,0.295449]
[1736683913739,0.2100656,3258.0,3257.6,0.8055]
[1736683914146,0.55,3258.2,3257.6,0.8055]
[1736683914372,0.2100656,3257.9,3257.6,0.8055]
[1736683914580,0.55,3258.2,3257.6,0.8055]
[1736683914780,0.2100656,3257.8,3257.6,0.3249889]
[1736683914930,2.14825,3258.5,3257.7,0.7863]
[1736683915279,0.55,3258.3,3257.7,0.7863]
[1736683915441,0.54805092,3258.3,3257.7,0.7863]
[1736683915830,0.21058181,3258.2,3257.7,0.7863]
[1736683916252,0.21058181,3258.2,3257.8,0.03069213]
[1736683916431,0.54805092,3258.3,3257.8,0.03069213]
[1736683916778,0.21058181,3258.2,3257.8,0.03069216]
[1736683917081,1.32975092,3258.3,3257.7,0.7863]
[1736683917376,0.21058181,3258.1,3257.7,0.7863]
[1736683917557,1.32975092,3258.3,3257.7,0.7863]
[1736683917777,0.21058181,3258.0,3257.7,0.7863]
[1736683917934,1.32975092,3258.3,3257.8,0.03069219]
[1736683918138,0.21058181,3257.9,3257.8,0.03069219]
[1736683918644,1.32975092,3258.3,3257.7,0.7863]
[1736683918869,0.21060828,3258.2,3257.7,0.7863]
[1736683919035,0.21060828,3258.2,3257.8,0.03069216]
[1736683919231,1.32975092,3258.3,3257.8,0.03069216]
[1736683919438,0.21062151,3258.2,3257.8,0.03069216]
[1736683919636,1.32975092,3258.3,3257.8,0.03069216]
[1736683919837,0.21062151,3258.2,3257.8,0.03069216]
[1736683920051,1.32975092,3258.3,3257.8,0.03069216]
[1736683920249,0.2106149,3258.2,3257.8,0.03069216]
[1736683920454,1.32975092,3258.3,3257.7,0.7863]
[1736683920791,0.2106149,3258.2,3257.7,0.7863]
[1736683920988,0.2106149,3258.2,3257.8,0.03069215]
[1736683921205,0.2106149,3258.2,3257.7,0.7863]
[1736683921484,0.2106149,3258.1,3257.7,0.7863]
[1736683922100,0.54805092,3258.3,3257.7,0.7863]
[1736683922386,0.2106149,3258.0,3257.8,0.03069217]
[1736683922591,0.55,3258.4,3257.7,0.7863]
[1736683922756,0.2106149,3257.9,3257.1,7.51914]
[1736683922977,0.55,3257.9,3257.2,0.8002]
[1736683923175,2.3593049,3257.8,3257.2,0.8002]
[1736683927252,2.3593049,3257.8,3257.3,0.03069706]
[1736683927452,2.3593049,3257.8,3257.2,0.8002]
[1736683927952,0.2106149,3257.8,3257.3,0.03069706]
[1736683928362,2.92978,3258.0,3257.3,0.03069706]
[1736683928590,2.92978,3258.0,3257.3,0.03069657]
[1736683928591,0.21023768,3257.7,3257.3,0.03069657]
[1736683928898,2.95284,3258.2,3257.5,0.7626]
[1736683929199,0.21023768,3257.6,3257.5,0.79329499]
[1736683929432,0.21023768,3257.6,3257.5,2.94216499]
[1736683929635,5.31,3258.3,3257.5,2.94216499]
[1736683929834,0.21033034,3258.2,3257.5,2.91147]
[1736683930017,0.21033034,3258.2,3257.7,0.7626]
[1736683932123,0.55,3258.3,3257.7,0.7626]
[1736683932287,0.21045607,3258.1,3257.7,0.7626]
[1736683932489,0.55,3258.3,3257.7,0.7626]
[1736683932706,0.21045607,3258.0,3257.7,0.7626]
[1736683932934,0.55,3258.3,3257.7,0.7626]
[1736683933331,0.21045607,3258.2,3257.7,0.7626]
[1736683936229,0.21045607,3258.2,3257.7,1.053745]
[1736683936541,0.21045607,3258.2,3257.8,0.03069219]
[1736683936751,0.21045607,3258.2,3257.7,0.7626]
[1736683936928,0.55,3258.3,3257.7,0.7626]
[1736683937545,0.21045607,3258.2,3257.7,0.7626]
[1736683938104,0.21045607,3258.2,3257.7,1.053745]
[1736683943250,0.21045607,3258.2,3257.8,0.7626]
[1736683943550,0.55,3258.4,3257.8,0.7626]
[1736683943707,0.21083326,3258.1,3257.8,0.7626]
[1736683943906,0.55,3258.4,3257.8,0.7626]
[1736683944109,0.21083326,3258.0,3257.8,0.7626]
[1736683944306,0.55,3258.4,3257.8,0.7626]
[1736683944849,0.21083326,3258.3,3257.8,0.7626]
[1736683945232,0.55,3258.2,3257.3,0.832]
[1736683945434,0.7847,3257.9,3257.3,0.832]
[1736683945810,0.2108862,3257.8,3257.3,0.832]
[1736683946012,0.2108862,3257.8,3257.3,0.86269672]
[1736683946211,0.2108862,3257.8,3257.3,0.832]
[1736683946507,0.2108862,3257.8,3257.3,1.667112]
[1736683947161,0.2108862,3257.8,3257.3,1.69780871]
[1736683947812,0.55,3258.0,3257.3,1.69780871]
[1736683948008,0.2108862,3257.7,3257.3,1.69780871]
[1736683948215,1.29121511,3258.1,3257.6,0.832]
[1736683948464,1.29121511,3258.1,3257.6,1.130088]
[1736683948869,0.2108862,3258.0,3257.6,1.130088]
[1736683949177,0.55,3258.3,3257.6,1.130088]
[1736683949466,0.21068106,3257.9,3257.6,1.130088]
[1736683949751,0.21068106,3257.8,3257.6,1.130088]
[1736683949952,0.21068106,3257.8,3257.7,0.3278968]
[1736683950168,0.55,3258.3,3257.7,0.3278968]
[1736683950311,0.21068106,3257.8,3257.6,0.832]
[1736683950509,0.55,3258.3,3257.6,0.832]
[1736683950739,0.21068106,3257.7,3257.6,0.832]
[1736683950924,0.55,3258.3,3257.6,0.832]
[1736683951256,0.21068106,3258.2,3257.6,0.832]
[1736683951456,0.21068106,3258.2,3257.7,0.298088]
[1736683951614,0.21068106,3258.2,3257.7,0.3287814]
[1736683953468,0.21068106,3258.2,3257.8,0.832]
[1736683953667,0.55,3258.3,3257.8,0.832]
[1736683953970,0.21068106,3258.2,3257.8,0.832]
[1736683954329,0.55,3258.3,3257.8,0.832]
[1736683954675,0.21060166,3258.1,3257.8,0.832]
[1736683954843,1.29121511,3258.4,3257.9,0.86269218]
[1736683955049,1.29121511,3258.4,3257.9,2.98059]
[1736683955378,0.21073403,3258.3,3257.9,2.98059]
[1736683955592,0.21073403,3258.3,3258.2,0.832]
[1736683955777,0.21073403,3258.3,3258.2,3.0111076]
[1736683955931,0.21073403,3258.3,3258.2,3.31221836]
[1736683956428,0.0229084,3258.7,3258.2,0.33179836]
[1736683956637,0.21105156,3258.6,3258.5,0.832]
[1736683956835,0.21105156,3258.6,3258.5,0.86268649]
[1736683957074,0.21105156,3258.6,3258.5,3.01090649]
[1736683957280,0.21105156,3258.6,3258.5,2.98022]
[1736683958164,0.0229084,3258.7,3258.6,0.832]
[1736683958349,0.0229084,3258.7,3258.6,1.130022]
[1736683958882,0.0229084,3258.7,3258.6,1.16070413]
[1736683959439,0.0229084,3258.7,3258.6,3.30886413]
[1736683961367,0.0229084,3258.7,3258.6,6.30886413]
[1736683961703,0.0229084,3258.7,3258.6,11.278182]
[1736683963172,0.0229084,3258.7,3258.6,16.648182]
[1736683964409,0.0229084,3258.7,3258.6,16.663182]
[1736683964921,0.0229084,3258.7,3258.6,16.670682]
[1736683967825,0.0229084,3258.7,3258.6,25.470682]
[1736683969122,0.0229084,3258.7,3258.6,20.470682]
[1736683969331,0.0229084,3258.7,3258.6,20.463182]
[1736683969497,0.0229084,3258.7,3258.6,20.448182]
[1736683969704,0.0229084,3258.7,3258.6,17.448182]
[1736683969884,0.0229084,3258.7,3258.6,15.300022]
[1736683970425,0.0229084,3258.7,3258.6,18.300022]
[1736683971434,0.0229084,3258.7,3258.6,20.448182]
[1736683973244,0.0229084,3258.7,3258.6,14.468022]
[1736683973427,0.7815084,3258.7,3258.4,0.61711501]
[1736683973859,0.7815084,3258.7,3258.2,3.0]
[1736683974034,0.2120037,3258.6,3258.1,0.7709]
[1736683974484,0.2120037,3258.6,3258.1,3.7709]
[1736683974602,0.2120037,3258.6,3258.2,0.591945]
[1736683974949,0.7815084,3258.7,3258.2,0.591945]
[1736683975314,0.7815084,3258.7,3257.8,2.91958]
[1736683975714,0.21170626,3258.6,3257.9,0.03068886]
[1736683975919,0.7815084,3258.7,3257.9,0.03068886]
[1736683976429,0.7815084,3258.7,3257.8,2.91958]
[1736683978145,0.7815084,3258.7,3257.9,0.03068887]
[1736683978365,0.7815084,3258.7,3258.0,0.29502689]
[1736683979436,2.9296184,3258.7,3257.8,2.91958]
[1736683979957,2.9296184,3258.7,3257.8,5.14868]
[1736683979958,0.2113889,3258.6,3257.8,5.14868]
[1736683980318,0.2113889,3258.6,3257.8,3.0]
[1736683980553,2.3595489,3258.6,3257.8,3.0]
[1736683980956,2.90683,3258.5,3257.8,3.0]
[1736683981127,2.90683,3258.5,3257.7,3.0]
[1736683981463,3.11881473,3258.4,3257.7,3.0]
[1736683986550,3.11881473,3258.4,3257.8,0.03069103]
[1736683986751,3.11881473,3258.4,3257.7,3.0]
[1736683990669,2.14837,3258.3,3257.7,3.0]
[1736683991115,0.21133608,3258.2,3257.7,3.0]
[1736683991313,0.21133608,3258.2,3257.7,3.36147954]
[1736683992507,0.21133608,3258.2,3257.7,0.36147954]
[1736683992796,0.8108,3258.1,3257.6,0.61479541]
[1736683993006,1.02213608,3258.1,3257.6,0.61479541]
[1736683993785,1.02213608,3258.1,3257.4,0.0075]
[1736683995000,1.02213608,3258.1,3257.5,0.5995063]
[1736683995733,0.8108,3257.6,3257.3,3.0]
[1736683995871,0.8108,3257.6,3257.2,5.37]
[1736683996078,0.21121039,3257.5,3257.2,5.37]
[1736683996290,2.95962,3257.6,3257.2,5.37]
[1736683996487,0.21121039,3257.4,3256.9,0.015]
[1736683996739,2.95962,3257.6,3257.0,0.30225]
[1736683996875,0.21121039,3257.3,3256.7,6.1829]
[1736683997187,0.8108,3257.2,3256.8,3.0]
[1736683999115,0.21093249,3257.1,3256.8,3.0]
[1736683999407,0.8108,3257.2,3256.8,3.0]
[1736683999617,0.21093249,3257.0,3256.8,3.89934654]
[1736683999908,0.8108,3257.2,3256.8,3.89934654]
[1736684000313,0.21093249,3257.1,3256.8,3.89934654]
[1736684000485,0.21093249,3257.1,3256.8,0.89934654]
[1736684000685,0.8108,3257.2,3256.6,3.0075]
[1736684000892,0.8108,3257.2,3256.6,3.63096669]
[1736684001307,2.95989,3257.2,3256.6,3.62346669]
[1736684001510,0.8108,3257.2,3256.6,3.62346669]
[1736684003424,0.8108,3257.2,3256.7,0.84360115]
[1736684003640,0.8108,3257.2,3256.8,0.66165178]
[1736684003944,0.8108,3257.2,3256.9,0.03070031]
[1736684004228,0.21011193,3257.1,3256.9,0.03070031]
[1736684005027,2.96049,3257.5,3256.9,0.03070031]
[1736684005226,0.21013179,3257.0,3256.9,0.03070031]
[1736684005429,2.96036,3257.7,3256.9,0.03070031]
[1736684005618,0.21015826,3257.0,3256.9,0.03070031]
[1736684005804,2.96035,3257.7,3256.9,0.39615952]
[1736684006138,2.96035,3257.7,3256.8,0.66165178]
[1736684006139,0.2084916,3257.0,3256.8,0.66165178]
[1736684006800,2.14886,3257.6,3256.8,0.66165178]
[1736684007239,2.14886,3257.6,3256.8,0.53165178]
[1736684007734,0.8116,3257.7,3256.8,0.53165178]
[1736684007958,2.14895,3257.5,3256.8,0.53165178]
[1736684008253,2.96064,3257.3,3256.6,3.62346669]
[1736684009523,2.14888,3257.6,3256.7,0.03070117]
[1736684009849,0.8116,3257.6,3256.9,0.7695]
[1736684010079,0.8116,3257.6,3257.0,3.03069788]
[1736684010357,0.8116,3257.6,3257.1,0.59494579]
[1736684010559,0.8116,3257.6,3257.1,0.62564353]
[1736684010855,0.8116,3257.6,3257.1,0.03069774]
[1736684011861,2.97413,3257.9,3257.0,0.03069818]
[1736684012250,2.1487,3257.8,3257.1,0.0075]
[1736684013435,0.20854455,3257.7,3257.1,0.0075]
[1736684013934,0.20854455,3257.7,3257.2,0.0306979]
[1736684014263,0.20854455,3257.7,3257.3,0.7846]
[1736684014423,0.20854455,3257.7,3257.4,0.41222488]
[1736684014625,0.8252,3258.2,3257.5,0.0225]
[1736684015146,0.20868354,3258.1,3257.5,0.0225]
[1736684015348,0.8252,3258.2,3257.5,0.0075]
[1736684015557,0.20868354,3258.1,3257.5,0.0075]
[1736684015878,0.8252,3258.2,3257.5,0.0075]
[1736684016257,0.20875634,3258.1,3257.5,0.0075]
[1736684016565,0.8252,3258.2,3257.5,0.0075]
[1736684016566,2.14857,3258.0,3257.5,0.0075]
[1736684016869,0.20875634,3257.9,3257.5,0.0075]
[1736684017026,0.20875634,3257.9,3257.5,0.03819435]
[1736684017363,0.20875634,3257.9,3257.5,0.03819432]
[1736684018455,0.20875634,3257.9,3257.5,0.0075]
[1736684019053,0.20875634,3257.9,3257.5,0.03819436]
[1736684019259,0.20875634,3257.9,3257.5,0.03819439]
[1736684019570,0.20875634,3257.9,3257.5,0.0075]
[1736684019931,0.20875634,3257.9,3257.5,0.0381944]
[1736684020145,0.20875634,3257.9,3257.5,0.0075]
[1736684020848,2.35738634,3257.9,3257.5,0.0075]
[1736684021036,2.35738634,3257.9,3257.4,0.0075]
[1736684021240,0.8252,3257.8,3257.4,0.0075]
[1736684021570,0.20874972,3257.7,3257.4,0.0075]
[1736684021743,2.9739,3257.8,3257.4,0.0075]
[1736684021949,0.20874972,3257.7,3257.4,0.0075]
[1736684022146,0.20874972,3257.7,3257.3,0.7696]
[1736684022463,0.20874972,3257.6,3257.3,0.7696]
[1736684022663,0.20874972,3257.6,3257.1,0.6128197]
[1736684022664,0.20874972,3257.6,3257.1,1.4053197]
[1736684022839,2.14886,3257.6,3257.1,0.8231985]
[1736684023039,2.14886,3257.6,3257.1,0.7925]
[1736684023239,0.20875632,3257.5,3257.1,0.7925]
[1736684024999,0.20875632,3257.5,3257.1,0.0075]
[1736684025401,0.20875632,3257.5,3257.1,0.03819841]
[1736684025556,0.20875632,3257.5,3257.1,0.0075]
[1736684025757,0.20875632,3257.5,3257.1,0.03819842]
[1736684026218,0.20875632,3257.5,3257.1,0.0075]
[1736684026566,0.20875632,3257.5,3257.3,0.0075]
[1736684026916,0.8252,3257.8,3257.3,0.0075]
[1736684027112,1.122583,3257.8,3257.3,0.0075]
[1736684027398,0.20866365,3257.7,3257.3,0.0075]
[1736684027776,1.122583,3257.8,3257.2,0.8306]
[1736684027983,0.20866365,3257.7,3257.2,0.8306]
[1736684028514,0.20866365,3257.7,3257.1,0.0075]
[1736684028862,2.35741365,3257.7,3257.1,0.0075]
[1736684031473,2.35741365,3257.7,3257.0,0.62527482]
[1736684031474,2.14883,3257.6,3257.0,0.62527482]
[1736684031881,0.20870339,3257.5,3257.0,0.62527482]
[1736684033939,0.20870339,3257.5,3257.2,0.8306]
[1736684034240,2.97389,3257.8,3257.2,0.8306]
[1736684034538,0.20870339,3257.4,3257.2,0.8306]
[1736684034697,2.97389,3257.8,3257.2,0.8306]
[1736684034900,3.271279,3257.8,3257.2,0.8306]
[1736684035201,0.20870339,3257.7,3257.2,0.8306]
[1736684040797,0.20870339,3257.7,3257.2,0.86129737]
[1736684044127,0.20870339,3257.7,3257.3,0.0075]
[1736684044423,1.29121511,3258.1,3257.5,0.0075]
[1736684044621,0.20858426,3257.6,3257.5,0.03819427]
[1736684044782,1.29121511,3258.1,3257.5,0.03819427]
[1736684044783,1.29121511,3258.1,3257.5,0.79039427]
[1736684044986,0.20858426,3258.0,3257.5,0.79039427]
[1736684045425,2.35715426,3258.0,3257.5,0.7597]
[1736684047834,2.1487,3257.8,3257.5,0.7522]
[1736684048328,2.1487,3257.8,3257.1,0.015]
[1736684048329,0.20872986,3257.7,3257.2,0.7522]
[1736684049433,0.20872986,3257.7,3257.3,0.0075]
[1736684049596,0.20872986,3257.7,3257.3,0.03819685]
[1736684049796,2.14859,3258.0,3257.3,0.0075]
[1736684049997,0.50618944,3257.9,3257.3,0.0075]
[1736684050698,2.14871,3257.8,3257.3,0.0075]
[1736684050896,2.14871,3257.8,3257.2,0.7522]
[1736684051338,0.20865044,3257.7,3257.2,0.7522]
[1736684053920,3.18423044,3257.7,3257.2,0.7522]
[1736684054126,2.97558,3257.7,3257.2,0.7522]
[1736684054300,0.20865044,3257.6,3257.2,0.7522]
[1736684054699,2.35752044,3257.6,3257.2,0.7522]
[1736684054894,2.67595248,3257.6,3257.0,0.62527482]
[1736684056301,0.20865044,3257.6,3257.1,0.03820032]
[1736684056639,0.20865044,3257.6,3257.1,0.0075]
[1736684057043,0.20865044,3257.6,3257.1,0.03819883]
[1736684058743,0.20865044,3257.6,3257.1,0.0075]
[1736684059338,2.35747044,3257.6,3257.0,0.62527482]
[1736684059639,0.31842704,3257.5,3257.0,0.62527482]
[1736684060144,0.20850482,3257.4,3257.0,0.62527482]
[1736684060701,2.35748482,3257.4,3257.0,0.62527482]
[1736684060906,2.97585,3257.3,3257.0,0.62527482]
[1736684061309,0.20843201,3257.2,3257.0,0.62527482]
[1736684063556,2.67594021,3257.2,3257.0,0.62527482]
[1736684063762,2.67594021,3257.2,3256.3,3.0075]
[1736684063763,0.8268,3257.0,3256.3,3.7597]
[1736684063942,2.97606,3257.0,3256.3,3.7597]
[1736684064126,0.20824008,3256.9,3256.4,0.0075]
[1736684069546,0.20824008,3256.9,3256.4,0.03820502]
[1736684069747,0.20824008,3256.9,3256.4,0.0075]
[1736684072251,0.20824008,3256.9,3256.4,1.22701729]
[1736684072680,0.20824008,3256.9,3256.6,0.0075]
[1736684072883,2.96494,3257.3,3256.6,0.03820499]
[1736684073103,0.20771045,3256.8,3256.6,0.03820499]
[1736684073407,2.96494,3257.3,3256.6,0.03820499]
[1736684073722,0.8159,3257.3,3256.6,0.75209571]
[1736684073851,0.20771045,3257.2,3256.6,0.75209571]
[1736684075968,0.20771045,3257.2,3256.7,0.015]
[1736684076175,0.20771045,3257.2,3256.9,0.7623]
[1736684077602,0.20782299,3257.1,3256.9,0.7623]
[1736684077806,2.96473,3257.6,3256.9,1.14235014]
[1736684077952,0.20782299,3257.5,3256.9,0.7623]
[1736684078143,0.20782299,3257.5,3257.0,0.0075]
[1736684078346,0.20782299,3257.5,3257.0,0.0382001]
[1736684078549,0.20782299,3257.5,3257.1,0.7623]
[1736684078749,0.20782299,3257.5,3256.6,0.92289072]
[1736684078750,1.29121511,3258.1,3257.4,3.0]
[1736684078952,2.10711511,3258.2,3257.6,0.015]
[1736684079151,2.10711511,3258.2,3257.8,0.0075]
[1736684079152,0.20824006,3258.1,3257.8,0.0075]
[1736684079574,0.20824006,3258.1,3258.0,0.015]
[1736684079755,0.20824006,3258.1,3258.0,5.93335]
[1736684080039,0.0229084,3258.7,3258.1,0.0075]
[1736684080178,0.0229084,3258.7,3258.1,5.19414665]
[1736684080505,0.20824006,3258.6,3258.4,0.015]
[1736684080646,0.20824006,3258.6,3258.4,0.04568584]
[1736684082496,0.20824006,3258.6,3258.4,0.015]
[1736684083822,0.20824006,3258.6,3258.5,0.0075]
[1736684086122,0.20824006,3258.6,3258.5,0.8003]
[1736684086427,0.20824006,3258.6,3258.5,5.94852]
[1736684086786,0.20824006,3258.6,3258.5,3.8003]
[1736684087125,0.20824006,3258.6,3258.5,3.0075]
[1736684087926,0.20824006,3258.6,3258.5,3.32325]
[1736684090734,0.0229084,3258.7,3258.6,3.0225]
[1736684091025,0.23319293,3258.7,3258.6,3.0225]
[1736684091225,0.0229084,3258.7,3258.6,3.0225]
[1736684092685,0.0229084,3258.7,3258.6,3.8525]
[1736684092901,0.0229084,3258.7,3258.6,1.35975076]
[1736684095212,0.0229084,3258.7,3258.6,1.32906724]
[1736684100124,0.0229084,3258.7,3258.6,0.49906724]
[1736684101242,0.0229084,3258.7,3258.6,0.52975053]
[1736684101608,0.0229084,3258.7,3258.6,0.49906724]
[1736684102008,0.0229084,3258.7,3258.6,0.48406724]
[1736684102324,0.7881084,3258.7,3258.3,5.37]
[1736684102500,0.7881084,3258.7,3258.4,0.015]
[1736684102709,0.0229084,3258.7,3258.5,0.8375]
[1736684102907,0.0229084,3258.7,3258.6,0.0225]
[1736684103248,0.0229084,3258.7,3258.6,0.0531839]
[1736684103445,0.0229084,3258.7,3258.6,0.0225]
[1736684103653,0.0229084,3258.7,3258.6,0.4384339]
[1736684103846,0.0229084,3258.7,3258.6,0.40775]
[1736684105861,0.7571,3258.6,3258.4,3.0]
[1736684106006,0.7571,3258.6,3258.0,6.78760416]
[1736684106207,0.21035726,3258.5,3258.1,3.03818728]
[1736684106414,0.0229084,3258.7,3258.2,0.0075]
[1736684106613,0.21026466,3258.6,3258.2,0.015]
[1736684106862,0.0229084,3258.7,3258.4,0.0075]
[1736684107574,0.21026466,3258.6,3258.4,0.0075]
[1736684107943,0.0229084,3258.7,3258.4,0.0075]
[1736684108269,0.21026466,3258.6,3258.4,0.0075]
[1736684108614,0.0229084,3258.7,3258.4,0.0075]
[1736684108848,0.21026466,3258.6,3258.4,0.0075]
[1736684109029,2.14832,3258.4,3258.1,3.0]
[1736684109953,0.21012579,3258.3,3258.1,3.0]
[1736684110411,2.35850579,3258.3,3258.1,3.0]
[1736684111432,2.35850579,3258.3,3257.8,0.0075]
[1736684111579,2.35850579,3258.3,3257.8,0.39037]
[1736684112381,0.8122,3258.1,3257.8,0.0075]
[1736684112611,0.20965618,3258.0,3257.5,0.8322]
[1736684112924,0.8122,3258.1,3257.6,0.0075]
[1736684113303,0.20964957,3258.0,3257.6,0.0075]
[1736684113476,0.20964957,3258.0,3257.6,0.015]
[1736684114726,0.20964957,3258.0,3257.8,0.015]
[1736684115144,0.7716,3258.4,3257.8,0.015]
[1736684115300,0.20959662,3257.9,3257.8,0.54270136]
[1736684115508,0.7716,3258.4,3257.8,0.54270136]
[1736684115853,0.20959662,3258.3,3257.8,0.0225]
[1736684116608,0.20959662,3258.3,3258.1,0.0075]
[1736684116840,0.0229084,3258.7,3258.2,0.0225]
[1736684117208,0.20962972,3258.6,3258.3,0.0075]
[1736684117405,0.20962972,3258.6,3258.4,0.0075]
[1736684118127,0.20962972,3258.6,3258.3,0.0075]
[1736684118323,0.20962972,3258.6,3258.3,0.28565592]
[1736684118523,0.20962972,3258.6,3258.3,0.0075]
[1736684119039,0.20962972,3258.6,3258.3,0.03818666]
[1736684119358,0.20962972,3258.6,3258.3,0.0075]
[1736684119863,0.20962972,3258.6,3258.3,0.0381867]
[1736684120807,0.20962972,3258.6,3258.3,0.0075]
[1736684121103,0.20962972,3258.6,3258.3,0.015]
[1736684121357,0.20962972,3258.6,3258.3,0.0456867]
[1736684121554,0.20962972,3258.6,3258.5,0.0075]
[1736684121963,0.20962972,3258.6,3258.5,0.05318666]
[1736684122117,0.20962972,3258.6,3258.5,3.01830666]
[1736684122319,0.0229084,3258.7,3258.6,5.16316]
[1736684122524,0.0229084,3258.7,3258.6,0.945481]
[1736684122761,0.0229084,3258.7,3258.6,0.015]
[1736684123619,0.0229084,3258.7,3258.6,2.16316]
[1736684125648,0.0229084,3258.7,3258.6,2.79269979]
[1736684126284,0.0229084,3258.7,3258.6,5.79269979]
[1736684128475,0.0229084,3258.7,3258.6,10.79269979]
[1736684128677,0.0229084,3258.7,3258.6,13.31343477]
[1736684129095,0.0229084,3258.7,3258.6,19.23343477]
[1736684129644,0.0229084,3258.7,3258.6,18.68343477]
[1736684133798,0.0229084,3258.7,3258.6,19.23343477]
[1736684134847,0.0229084,3258.7,3258.6,18.68343477]
[1736684135046,0.0229084,3258.7,3258.6,13.68343477]
[1736684137187,0.0229084,3258.7,3258.6,17.14916477]
[1736684137500,0.0229084,3258.7,3258.6,16.72359477]
[1736684137649,0.0229084,3258.7,3258.6,15.80906477]
[1736684138251,0.0229084,3258.7,3258.6,13.68343477]
[1736684138509,0.0229084,3258.7,3258.6,13.67593477]
[1736684138809,0.0229084,3258.7,3258.6,13.68343477]
[1736684139698,0.0229084,3258.7,3258.6,12.89913477]
[1736684139863,0.0229084,3258.7,3258.6,6.02203979]
[1736684140266,0.0229084,3258.7,3258.6,6.00703979]
[1736684140778,0.0229084,3258.7,3258.6,9.00703979]
[1736684141074,0.0229084,3258.7,3258.6,5.3775]
[1736684141595,0.0229084,3258.7,3258.6,8.3775]
[1736684144243,0.0229084,3258.7,3258.6,3.0075]
[1736684144607,0.0229084,3258.7,3258.6,6.54056754]
[1736684145541,0.0229084,3258.7,3258.6,5.95926]
[1736684145897,0.0229084,3258.7,3258.6,3.0225]
[1736684146321,0.0229084,3258.7,3258.6,3.0075]
[1736684146831,0.26785533,3258.7,3258.6,3.0075]
[1736684147018,0.0229084,3258.7,3258.6,3.0075]
[1736684147637,0.26788839,3258.7,3258.6,3.0075]
[1736684147817,0.0229084,3258.7,3258.6,3.0]
[1736684148017,0.26788839,3258.7,3258.6,3.0]
[1736684148324,0.0229084,3258.7,3258.6,3.0]
[1736684149599,0.26788839,3258.7,3258.6,3.0]
[1736684152847,0.26788839,3258.7,3258.6,3.05318671]
[1736684153050,0.26788839,3258.7,3258.6,3.68315933]
[1736684153197,0.0229084,3258.7,3258.6,3.0225]
[1736684153640,0.0229084,3258.7,3258.6,3.0075]
[1736684153935,1.09756938,3258.7,3258.6,3.0]
[1736684154323,0.8527084,3258.7,3258.6,3.0]
[1736684154500,1.09759583,3258.7,3258.6,3.0]
[1736684160507,0.26779583,3258.7,3258.6,3.0]
[1736684160712,0.0229084,3258.7,3258.6,3.0]
[1736684161767,0.0229084,3258.7,3258.6,5.74955766]
[1736684163521,0.0229084,3258.7,3258.6,6.53815766]
[1736684165133,0.0229084,3258.7,3258.6,3.57889766]
[1736684165431,0.26761732,3258.7,3258.6,3.0075]
[1736684165835,0.0229084,3258.7,3258.6,6.00574666]
[1736684166174,0.0229084,3258.7,3258.6,5.97506]
[1736684166669,0.0229084,3258.7,3258.6,3.8119]
[1736684166964,0.0229084,3258.7,3258.6,4.25409099]
[1736684167629,0.0229084,3258.7,3258.6,6.41725099]
[1736684168460,0.0229084,3258.7,3258.6,11.78725099]
[1736684168811,0.0229084,3258.7,3258.6,16.49795099]
[1736684170122,0.0229084,3258.7,3258.6,15.74102099]
[1736684170319,0.0229084,3258.7,3258.6,15.49124099]
[1736684173269,0.0229084,3258.7,3258.6,16.04124099]
[1736684174518,0.0229084,3258.7,3258.6,15.49124099]
[1736684176011,0.0229084,3258.7,3258.6,14.70215099]